bitfinex/quotes_ETHUSD_20241217
["timestamp","ask_amount","ask_price","bid_price","bid_amount"]
[1734439115003,0.8293,4002.5,4001.9,0.18539063]
[1734439115209,0.8293,4002.5,4002.0,0.18539063]
[1734439115403,0.8293,4002.5,4002.1,0.18539063]
[1734439115712,0.8293,4002.5,4002.2,0.18539063]
[1734439115907,0.8293,4002.5,4002.3,0.18539063]
[1734439116089,0.8293,4002.5,4002.4,0.18539063]
[1734439116285,0.8293,4003.3,4002.4,0.18539063]
[1734439116465,5.28270794,4003.1,4002.5,0.18539063]
[1734439116671,5.28270794,4003.1,4002.6,0.18539063]
[1734439116870,5.28270794,4003.1,4002.0,3.0]
[1734439116871,0.8293,4003.0,4002.7,0.18539063]
[1734439117178,0.8293,4003.0,4002.8,0.18539063]
[1734439117367,0.8293,4003.0,4001.9,2.32925473]
[1734439117568,0.8293,4002.8,4002.0,3.18591677]
[1734439117765,0.8293,4002.8,4002.1,0.185923]
[1734439118074,0.8293,4002.8,4002.2,0.185923]
[1734439118264,0.8293,4002.8,4001.4,0.8135]
[1734439118265,0.8293,4002.8,4002.3,0.185923]
[1734439118465,0.8293,4002.8,4002.4,0.185923]
[1734439118664,0.14156806,4002.7,4002.5,0.185923]
[1734439118892,0.14156806,4002.7,4002.6,0.185923]
[1734439119091,0.97086806,4002.7,4001.6,3.0]
[1734439119306,0.97086806,4002.7,4001.7,0.18600083]
[1734439119507,0.97086806,4002.7,4001.8,0.18600083]
[1734439119721,0.97086806,4002.7,4001.6,3.0]
[1734439119722,0.05221542,4002.6,4001.9,0.18600083]
[1734439120020,0.05221542,4002.6,4002.0,3.18600083]
[1734439120169,0.05221542,4002.6,4002.1,0.18600083]
[1734439120369,0.05221542,4002.6,4002.2,0.18600083]
[1734439120570,0.05221542,4002.6,4002.3,0.18597898]
[1734439120811,0.05221542,4002.6,4002.4,0.18597898]
[1734439120983,0.05221542,4002.6,4002.5,0.18597898]
[1734439122919,0.8293,4002.7,4002.5,0.18597898]
[1734439123074,4.45340794,4003.7,4002.6,0.18597898]
[1734439123414,0.8293,4003.5,4002.7,0.18597898]
[1734439123601,0.05203031,4003.4,4002.8,0.18597898]
[1734439123806,0.05203031,4003.4,4002.9,0.18597898]
[1734439124002,0.05203031,4003.4,4003.0,0.18597898]
[1734439124225,0.05203031,4003.4,4003.1,0.18597898]
[1734439124528,0.8293,4003.2,4001.9,2.32925473]
[1734439124727,0.8293,4003.2,4002.0,0.18592407]
[1734439124913,0.8293,4003.0,4002.1,0.18592407]
[1734439125116,0.8293,4003.0,4002.2,0.18592407]
[1734439125328,0.05196781,4002.9,4002.3,0.18592407]
[1734439125535,0.05196781,4002.9,4002.4,0.18592407]
[1734439125731,0.05196781,4002.9,4002.5,0.18592407]
[1734439126034,0.05196781,4002.9,4002.0,3.0]
[1734439126035,0.05196781,4002.9,4002.6,0.18592407]
[1734439126236,0.05196781,4002.9,4002.7,0.18592407]
[1734439126408,0.7953,4002.8,4001.7,0.8135]
[1734439126596,0.7953,4002.8,4001.8,0.18591325]
[1734439126597,0.05181404,4002.7,4001.8,0.18591325]
[1734439126801,0.5780079,4003.3,4001.6,3.0]
[1734439126802,0.7953,4003.2,4001.9,0.18591325]
[1734439127123,0.5780079,4003.3,4001.6,3.0]
[1734439127124,0.7953,4003.0,4002.0,0.18591325]
[1734439127328,0.7953,4003.0,4002.1,0.18591325]
[1734439127498,0.7953,4002.8,4002.2,0.18591325]
[1734439127698,0.7953,4002.8,4002.3,0.18591325]
[1734439127921,0.84691253,4002.7,4002.4,0.18591325]
[1734439128243,0.84691253,4002.7,4002.5,0.18591325]
[1734439128442,0.84691253,4002.7,4002.6,0.18591325]
[1734439130511,0.84691253,4002.7,4002.6,0.18586695]
[1734439132209,0.84691253,4002.7,4001.7,1.03430957]
[1734439132418,0.84691253,4002.7,4001.8,3.18585258]
[1734439132617,0.84691253,4002.7,4001.9,5.24215658]
[1734439132848,0.84691253,4002.7,4002.0,1.00837418]
[1734439133006,0.84691253,4002.7,4002.0,0.18585258]
[1734439133342,0.84691253,4002.7,4002.1,1.00862769]
[1734439133518,0.84691253,4002.7,4002.2,0.18585258]
[1734439133703,1.03560108,4002.7,4001.8,1.03430957]
[1734439133903,0.84691253,4002.7,4001.9,0.18585941]
[1734439134165,0.84691253,4002.7,4002.0,5.24292944]
[1734439134370,0.84691253,4002.7,4002.1,1.00868742]
[1734439134667,0.84691253,4002.7,4002.2,0.18585941]
[1734439134829,0.84691253,4002.7,4002.3,0.18585941]
[1734439135168,0.84691253,4002.7,4002.4,0.18585941]
[1734439135385,0.84691253,4002.7,4002.5,0.18585941]
[1734439135533,0.84691253,4002.7,4001.9,1.07733953]
[1734439135864,0.84691253,4002.7,4002.0,5.24320223]
[1734439136030,0.84691253,4002.7,4002.1,0.82291875]
[1734439136231,0.84691253,4002.7,4001.9,1.07733953]
[1734439136468,0.84691253,4002.7,4002.0,5.05724605]
[1734439136670,0.84691253,4002.7,4002.1,0.82289842]
[1734439136854,0.84691253,4002.7,4001.9,4.07733953]
[1734439137043,0.84691253,4002.7,4002.0,2.0573338]
[1734439137372,0.84691253,4002.7,4002.0,5.0573338]
[1734439137527,0.84691253,4002.7,4002.0,0.82293352]
[1734439137730,0.84691253,4002.7,4002.1,0.82293352]
[1734439137968,0.84691253,4002.7,4001.9,4.07733953]
[1734439138183,0.84691253,4002.7,4002.0,5.0563272]
[1734439138346,0.84691253,4002.7,4002.1,0.82253088]
[1734439138685,0.84691253,4002.7,4002.2,1.07733953]
[1734439139197,0.05161253,4002.7,4002.5,1.07733953]
[1734439139695,5.24870794,4003.0,4002.5,1.07733953]
[1734439140077,0.05152544,4002.9,4002.3,3.0]
[1734439140262,0.05152544,4002.9,4002.4,2.05728068]
[1734439140908,0.05152544,4002.9,4002.7,0.8137]
[1734439141199,0.05152544,4002.9,4002.8,2.05688959]
[1734439141371,0.7882,4003.3,4002.8,2.05688959]
[1734439141562,0.05167291,4002.9,4002.7,0.8137]
[1734439141899,0.7882,4003.3,4002.8,2.05641648]
[1734439142101,0.7882,4003.3,4002.7,0.8137]
[1734439142302,0.05195519,4003.2,4002.8,0.82261302]
[1734439142516,0.05195519,4003.2,4002.7,0.8137]
[1734439142662,1.55995938,4003.9,4002.7,0.8137]
[1734439142663,0.09763735,4004.1,4002.8,0.82256863]
[1734439142860,2.78362948,4004.0,4002.8,0.82256863]
[1734439143086,2.16189718,4003.9,4002.9,0.82256863]
[1734439143406,2.16189718,4003.8,4002.5,1.03430957]
[1734439143618,2.16189718,4003.8,4002.1,4.03430957]
[1734439143619,4.65958718,4003.7,4002.1,4.03430957]
[1734439143779,4.62405832,4003.6,4002.2,2.12312941]
[1734439143960,2.16189718,4003.5,4002.2,0.84925176]
[1734439144169,2.16189718,4003.4,4002.3,2.12313525]
[1734439144376,2.16189718,4003.3,4002.1,1.03430957]
[1734439144725,0.05049506,4003.4,4002.2,1.03430957]
[1734439144867,0.05045434,4003.2,4002.2,3.15733187]
[1734439145218,1.72961347,4003.8,4002.3,3.0]
[1734439145443,2.49757,4003.9,4002.4,0.84920892]
[1734439145444,2.16207707,4003.7,4002.4,0.84920892]
[1734439145586,2.16207707,4003.6,4002.4,0.84920892]
[1734439145913,0.8156,4003.4,4002.1,1.03430957]
[1734439146070,0.8156,4003.2,4002.2,3.0]
[1734439146379,0.8156,4003.2,4002.3,5.12308701]
[1734439146580,0.8156,4003.2,4002.4,0.8492348]
[1734439146908,0.05029635,4003.1,4002.1,1.03430957]
[1734439147108,0.05029635,4003.1,4002.1,6.15738353]
[1734439147284,0.8156,4003.2,4002.2,6.15738353]
[1734439147472,0.8156,4003.2,4002.3,5.12307396]
[1734439147808,0.8156,4003.2,4002.4,0.84922958]
[1734439148010,0.8156,4003.2,4002.1,4.03430957]
[1734439148172,0.8156,4003.0,4002.2,5.12414688]
[1734439148502,0.8156,4003.0,4001.9,1.55146435]
[1734439148503,0.98364933,4003.0,4001.9,4.03430957]
[1734439148709,0.98364933,4003.0,4002.0,2.1243875]
[1734439148710,0.8156,4003.0,4002.0,2.1243875]
[1734439149018,0.8156,4002.8,4002.1,2.1243875]
[1734439149237,0.9156,4002.8,4001.7,1.03430957]
[1734439149511,0.8156,4002.6,4001.6,1.03430957]
[1734439149717,0.8156,4002.6,4001.6,3.15871235]
[1734439149901,0.8156,4002.6,4001.4,2.36126435]
[1734439149902,0.04980554,4002.5,4001.7,2.12440278]
[1734439150207,0.1,4002.8,4001.5,1.03430957]
[1734439150208,0.8156,4002.4,4001.5,1.03430957]
[1734439150436,0.86523768,4002.4,4001.4,1.86941111]
[1734439150576,0.86490898,4002.3,4001.5,0.83510154]
[1734439150779,0.8156,4002.1,4000.9,1.03430957]
[1734439151012,0.8156,4001.9,4001.0,0.83528949]
[1734439151220,0.8156,4001.7,4000.6,1.03430957]
[1734439151378,0.8156,4001.7,4000.5,1.86971576]
[1734439151577,0.8156,4001.5,4000.6,3.34053239]
[1734439151775,0.8156,4001.5,4000.7,0.83496924]
[1734439151980,0.04888818,4001.4,4000.7,0.83496924]
[1734439152677,0.8156,4001.5,4000.7,0.83496924]
[1734439153215,0.04888326,4001.4,4000.8,1.25155655]
[1734439153527,0.8156,4001.5,4000.7,0.8098]
[1734439153829,0.8156,4001.5,4000.8,0.83419746]
[1734439154030,0.8156,4001.5,4000.7,0.8098]
[1734439154910,0.8156,4001.5,4000.6,1.25310928]
[1734439155127,0.8156,4001.5,4000.7,0.83400677]
[1734439155411,0.8156,4001.5,4000.6,1.25310928]
[1734439157066,0.04852919,4001.4,4000.6,1.25310928]
[1734439157246,0.8316,4001.3,4000.6,1.25310928]
[1734439157413,0.04848843,4001.2,4000.6,1.25310928]
[1734439157754,0.8316,4001.1,3999.9,0.8083]
[1734439158237,0.0483739,4001.0,3999.9,0.8083]
[1734439158421,0.8316,4000.9,3999.9,0.8083]
[1734439158835,0.8316,4000.9,3999.7,3.0]
[1734439159037,0.8316,4000.9,3999.8,0.83348785]
[1734439159346,0.8316,4000.9,3999.6,0.8083]
[1734439159551,0.8316,4000.9,3999.3,0.8083]
[1734439159915,0.04793468,4000.8,3999.3,0.8083]
[1734439160111,0.8316,4000.7,3999.3,0.8083]
[1734439160313,0.8316,4000.7,3999.5,2.33350961]
[1734439160549,0.04785947,4000.6,3999.5,2.33350961]
[1734439160720,0.8316,4000.7,3999.5,2.33350961]
[1734439160915,0.8316,4000.7,3999.6,3.2828235]
[1734439161133,0.8316,4000.7,3999.7,0.8083]
[1734439162015,0.8316,4000.7,3999.9,2.33350961]
[1734439164378,0.8316,4000.7,3999.7,0.8083]
[1734439165347,0.8316,4000.7,3999.5,2.33350961]
[1734439166446,0.8316,4000.7,3999.9,2.33350961]
[1734439166755,0.1,4001.4,4000.3,2.33350961]
[1734439167054,0.8316,4001.3,4000.3,2.33350961]
[1734439167259,0.8316,4001.3,4000.0,3.8083]
[1734439167419,0.8316,4001.3,3999.6,0.8083]
[1734439167620,0.97915372,4001.2,3999.6,0.8083]
[1734439167820,0.97915372,4001.2,3999.4,2.33350961]
[1734439168023,0.97915372,4001.2,3999.5,3.0]
[1734439168354,0.97915372,4001.2,3999.4,5.33350961]
[1734439168555,2.64681372,4001.2,3999.4,5.33350961]
[1734439168857,0.8316,4001.1,3999.4,5.33350961]
[1734439169042,0.04746868,4001.0,3999.4,5.33350961]
[1734439169353,0.8316,4000.9,3999.4,5.33350961]
[1734439169752,0.04742792,4000.8,3999.4,5.33350961]
[1734439169957,0.8316,4000.7,3999.4,5.33350961]
[1734439170353,0.8316,4000.5,3999.4,5.33350961]
[1734439170901,0.8316,4000.5,3999.5,3.8328235]
[1734439171442,0.8316,4000.5,3999.8,2.33350961]
[1734439171690,0.8316,4000.5,3999.9,0.8083]
[1734439171894,0.8316,4000.8,3999.9,3.8083]
[1734439172543,0.8316,4000.8,4000.0,0.55]
[1734439172771,0.8316,4000.8,4000.3,2.33350961]
[1734439172943,0.8316,4000.8,4000.4,3.0]
[1734439173278,0.8316,4001.0,4000.3,2.33350961]
[1734439173967,0.8316,4001.3,4000.3,2.33350961]
[1734439174177,0.8316,4001.3,4000.7,2.33350961]
[1734439175144,0.8047,4001.6,4000.7,2.33350961]
[1734439176367,0.8047,4001.6,4000.4,3.8083]
[1734439179784,0.8047,4001.6,4000.4,3.55]
[1734439183691,0.8047,4001.6,3999.9,4.18841918]
[1734439183862,0.8047,4001.6,4000.0,0.55]
[1734439184061,0.8047,4001.4,3999.6,0.8206]
[1734439184277,0.85313997,4001.3,3999.6,0.8206]
[1734439185039,0.8047,4001.3,3999.6,0.8206]
[1734439185447,0.85311959,4001.2,3999.6,0.8206]
[1734439185790,0.1,4001.1,3999.3,0.7772]
[1734439186004,0.8323,4001.0,3999.1,1.03430957]
[1734439186216,0.88024596,4001.0,3999.0,2.33350961]
[1734439186426,0.88024596,4001.0,3999.1,0.83287385]
[1734439186928,0.88024596,4001.0,3999.4,2.33350961]
[1734439191736,0.9323,4000.9,3999.4,2.33350961]
[1734439192145,0.8323,4000.7,3999.4,2.33350961]
[1734439192625,0.8323,4000.5,3999.4,2.33350961]
[1734439192826,0.1,4000.9,3999.1,3.0]
[1734439192827,0.8323,4000.8,3999.8,2.33350961]
[1734439193026,0.8323,4000.8,3999.9,3.83373201]
[1734439193230,0.8323,4000.8,3999.9,3.0]
[1734439193536,0.8323,4001.1,4000.6,2.33350961]
[1734439195561,0.8323,4001.1,4000.3,1.03430957]
[1734439195719,0.8323,4001.1,4000.4,3.0]
[1734439195915,0.8323,4001.1,4000.3,3.0]
[1734439196249,0.8323,4001.1,4000.4,1.02038978]
[1734439196553,0.8323,4001.1,4000.6,5.33350961]
[1734439196755,0.8323,4001.1,4000.7,3.18578943]
[1734439196967,0.8323,4001.1,4000.8,0.18578943]
[1734439197116,0.8323,4001.1,4000.9,0.18578943]
[1734439197311,0.8323,4001.1,4001.0,0.18578943]
[1734439198052,0.8323,4001.1,4000.6,2.33350961]
[1734439198263,0.8323,4001.1,4000.7,3.18578352]
[1734439198552,0.8323,4001.1,4000.8,0.18578352]
[1734439198850,0.8323,4001.9,4001.0,5.33350961]
[1734439199052,0.8323,4001.9,4001.1,3.18578352]
[1734439199353,0.8323,4001.9,4001.2,0.18578352]
[1734439199354,0.04784815,4001.8,4001.2,0.18578352]
[1734439199572,0.04784815,4001.8,4001.1,3.0]
[1734439199573,0.8323,4001.9,4001.3,0.18578352]
[1734439199773,0.8323,4001.9,4001.4,0.18578352]
[1734439200073,0.8323,4001.9,4001.5,0.18578352]
[1734439200259,0.8323,4001.9,4001.0,5.33350961]
[1734439200260,0.04842377,4001.8,4001.0,5.33350961]
[1734439200459,0.04842377,4001.8,4001.1,3.1857273]
[1734439200666,0.8323,4001.9,4001.2,0.1857273]
[1734439200861,0.8323,4001.9,4001.3,0.1857273]
[1734439201052,0.8323,4001.9,4001.4,0.1857273]
[1734439201251,0.8323,4001.9,4001.5,0.18573836]
[1734439201454,0.8323,4001.9,4001.0,5.33350961]
[1734439201677,0.8323,4001.9,4001.1,3.18574646]
[1734439201980,0.8323,4001.9,4001.2,0.18574646]
[1734439202140,0.8323,4001.9,4001.3,0.18574646]
[1734439202481,0.8323,4001.9,4001.4,0.18574646]
[1734439202776,0.8323,4001.9,4001.5,0.18574646]
[1734439202948,0.8323,4001.9,4001.6,0.18574646]
[1734439203153,0.8323,4001.9,4001.0,5.33350961]
[1734439203374,0.8323,4001.9,4001.1,4.01979652]
[1734439203576,0.8323,4001.9,4001.2,0.18571336]
[1734439203739,0.8323,4001.9,4001.1,3.0]
[1734439203740,0.8323,4001.9,4001.3,0.18571336]
[1734439204082,0.8323,4001.9,4001.4,0.18571336]
[1734439204383,0.8323,4001.9,4001.5,0.18572905]
[1734439204580,0.8323,4001.9,4001.6,0.18572905]
[1734439204780,0.8323,4001.9,4001.2,0.55]
[1734439205085,0.8323,4001.9,4001.3,0.18572629]
[1734439205290,0.8323,4001.9,4001.4,0.18572629]
[1734439205470,0.8323,4001.9,4001.5,0.18572629]
[1734439205673,0.8323,4001.9,4001.1,3.0]
[1734439205982,0.8323,4001.9,4001.2,0.18574871]
[1734439206186,0.8323,4001.9,4001.3,0.18574871]
[1734439206348,0.8323,4001.9,4001.4,0.48280872]
[1734439206543,0.8323,4001.9,4001.5,0.48280872]
[1734439206768,0.8323,4001.9,4001.1,3.0]
[1734439206769,0.8323,4001.9,4001.6,0.48280872]
[1734439206984,0.8323,4001.9,4001.7,0.18574871]
[1734439207180,0.8323,4001.9,4001.8,0.18574871]
[1734439207657,0.8323,4001.9,4000.7,3.0]
[1734439207851,0.8323,4001.9,4000.8,0.48257484]
[1734439208053,0.8323,4001.9,4000.9,0.48257484]
[1734439208249,0.8323,4001.9,4001.0,0.48257484]
[1734439208475,0.8323,4001.9,3999.8,5.17982875]
[1734439208476,0.8323,4001.9,4001.1,0.18560571]
[1734439208674,0.8323,4001.9,4001.2,0.18560571]
[1734439208952,0.98557245,4001.8,4001.3,0.18560571]
[1734439209155,0.98557245,4001.8,4001.4,0.18560571]
[1734439209351,0.98557245,4001.8,4000.9,0.29696913]
[1734439209598,0.84626735,4001.7,4001.0,0.48258558]
[1734439209799,0.84626735,4001.7,4001.1,0.48258558]
[1734439210093,0.84626735,4001.7,4001.2,0.48258558]
[1734439210246,0.84626735,4001.7,4001.3,0.48258558]
[1734439210551,0.7978,4001.7,4001.4,0.48258558]
[1734439210769,0.7978,4001.7,4001.5,0.48258558]
[1734439211049,0.7978,4001.7,4001.6,0.48224954]
[1734439211363,0.7978,4001.7,4001.6,0.18548059]
[1734439212157,0.7978,4001.7,4001.6,0.48224954]
[1734439212354,0.7978,4001.7,4001.6,0.18548059]
[1734439213164,0.7978,4001.7,4001.6,0.48224954]
[1734439213386,0.7978,4001.7,4001.6,0.18548059]
[1734439216170,0.7692,4002.3,4001.6,0.48224954]
[1734439216483,0.04689896,4002.2,4001.7,0.48224954]
[1734439216792,0.04689896,4002.2,4001.8,0.18548059]
[1734439216952,0.04689896,4002.2,4001.9,0.18548059]
[1734439217152,0.04689896,4002.2,4002.0,0.18548059]
[1734439217386,0.04689896,4002.2,4002.1,0.18548059]
[1734439219092,0.04689896,4002.2,4002.1,0.185581]
[1734439220473,0.04689896,4002.2,4001.4,0.7874]
[1734439220672,0.04689896,4002.2,4001.5,0.48273116]
[1734439220903,0.7692,4002.3,4001.6,0.48273116]
[1734439221062,0.7692,4002.3,4001.7,0.48273116]
[1734439221257,0.04715495,4002.2,4001.8,0.48273116]
[1734439221578,0.7692,4002.3,4001.9,0.48273116]
[1734439221752,0.04715495,4002.2,4002.0,0.48273116]
[1734439221957,0.7692,4002.3,4002.1,0.18566583]
[1734439222192,0.7692,4002.3,4002.2,0.18566583]
[1734439224317,0.7692,4002.3,4001.4,0.7874]
[1734439224516,0.7692,4002.3,4001.5,0.73102913]
[1734439224802,0.7692,4002.3,4001.6,0.48321623]
[1734439225003,0.7692,4002.3,4001.7,0.48321623]
[1734439225316,0.7692,4002.3,4001.8,0.48321623]
[1734439225474,0.7692,4002.3,4001.9,0.48321623]
[1734439225801,0.7692,4002.3,4002.0,0.48321623]
[1734439225976,0.7692,4002.3,4002.1,0.48321623]
[1734439226162,0.7692,4002.3,4002.2,0.48321623]
[1734439226495,0.81639992,4002.3,4002.2,0.48321623]
[1734439227196,0.81639992,4002.3,4002.2,0.48325573]
[1734439227381,0.7692,4002.8,4002.2,0.48325573]
[1734439227581,0.04729616,4002.7,4002.3,0.48325573]
[1734439227768,0.04729616,4002.7,4002.0,0.7874]
[1734439227769,0.04729616,4002.7,4002.4,0.48325573]
[1734439227974,0.04729616,4002.7,4002.5,0.48325573]
[1734439228294,0.04729616,4002.7,4002.6,0.48325573]
[1734439228876,0.7692,4002.8,4002.6,0.48325573]
[1734439229197,0.7692,4003.6,4002.7,0.48325573]
[1734439229397,0.23921186,4003.5,4002.8,0.48325573]
[1734439229598,0.23921186,4003.5,4002.9,0.48325573]
[1734439229766,0.23921186,4003.5,4003.0,0.18586759]
[1734439229962,0.23921186,4003.5,4002.1,0.24782345]
[1734439229963,0.23921186,4003.5,4003.1,0.18586759]
[1734439230166,0.8692,4003.3,4002.2,0.29717441]
[1734439230490,0.8692,4003.3,4001.5,3.0]
[1734439230491,1.50434641,4003.2,4002.3,0.29717441]
[1734439230664,0.7692,4003.0,4001.5,0.24782345]
[1734439230997,0.04778962,4002.9,4001.6,0.29727291]
[1734439231197,0.04778962,4002.9,4001.4,1.03522345]
[1734439231198,0.8236,4002.8,4001.7,0.29727291]
[1734439231498,0.8236,4002.6,4001.8,0.29727291]
[1734439231702,0.8236,4002.6,4001.9,0.29727291]
[1734439231874,0.04770816,4002.5,4002.0,0.29727291]
[1734439232208,0.8236,4002.6,4002.1,0.29727291]
[1734439232359,0.8236,4002.6,4002.2,0.29727291]
[1734439232669,0.07238434,4002.5,4002.3,0.29727291]
[1734439232872,0.07238434,4002.5,4001.5,0.24782345]
[1734439233079,0.07238434,4002.5,4001.6,0.29725867]
[1734439233271,0.8236,4002.6,4001.7,0.29725867]
[1734439233605,0.07268947,4002.5,4001.8,0.29725867]
[1734439233764,0.07268947,4002.5,4001.9,0.29725867]
[1734439234102,0.07268947,4002.5,4002.0,0.29725867]
[1734439234273,0.07268947,4002.5,4002.1,0.29725867]
[1734439234478,0.07268947,4002.5,4002.2,0.29725867]
[1734439234797,0.07268947,4002.5,4002.3,0.29725867]
[1734439235004,0.07268947,4002.5,4001.5,0.24782345]
[1734439235205,0.8236,4002.6,4001.6,0.29722692]
[1734439235360,0.8236,4002.6,4001.7,0.54505037]
[1734439235566,0.8236,4002.6,4001.4,3.7874]
[1734439235567,0.8236,4002.6,4001.8,0.29722692]
[1734439235862,0.8236,4002.6,4001.9,0.29722692]
[1734439235863,0.07257137,4002.5,4001.9,0.29722692]
[1734439236083,0.07257137,4002.5,4002.0,0.29722692]
[1734439236291,0.07257137,4002.5,4002.1,0.29722692]
[1734439236512,0.07257137,4002.5,4002.2,0.29722692]
[1734439236712,0.07257137,4002.5,4001.5,0.30199016]
[1734439236918,0.07257137,4002.5,4001.6,1.37806774]
[1734439237072,0.8236,4002.6,4001.7,0.29719027]
[1734439237261,0.8236,4002.6,4001.8,0.29719027]
[1734439237463,0.8236,4002.6,4001.9,0.29719027]
[1734439237663,0.8236,4002.6,4002.0,0.29719027]
[1734439237664,0.07257137,4002.5,4002.0,0.29719027]
[1734439237900,0.07257137,4002.5,4002.1,0.29719027]
[1734439238175,0.07257137,4002.5,4001.5,0.30199016]
[1734439238176,0.07257137,4002.5,4002.2,0.29719027]
[1734439238406,0.07257137,4002.5,4001.6,0.29719027]
[1734439238583,0.07257137,4002.5,4001.7,0.29719027]
[1734439238877,0.07257137,4002.5,4001.5,0.30199016]
[1734439238878,0.26673096,4002.5,4001.8,0.29719027]
[1734439239086,0.26673096,4002.5,4001.9,0.29719027]
[1734439239299,0.07257137,4002.5,4002.0,0.29719027]
[1734439239479,0.07257137,4002.5,4002.1,0.29719027]
[1734439239690,0.07257137,4002.5,4002.2,0.29719027]
[1734439239885,0.07257137,4002.5,4001.5,0.30199016]
[1734439240088,0.07257137,4002.5,4001.6,1.13159722]
[1734439240290,0.07257137,4002.5,4001.7,0.29737708]
[1734439240477,0.07257137,4002.5,4001.8,0.29737708]
[1734439240673,0.07257137,4002.5,4001.9,0.29737708]
[1734439240899,0.27673096,4002.5,4002.0,0.29737708]
[1734439241093,0.27673096,4002.5,4002.1,0.29737708]
[1734439241273,0.27673096,4002.5,4002.2,0.29737708]
[1734439241476,0.27673096,4002.5,4001.5,0.54980483]
[1734439241805,0.07257137,4002.5,4001.6,1.13192146]
[1734439242111,0.07257137,4002.5,4001.7,0.29749749]
[1734439242306,0.07257137,4002.5,4001.8,0.48345131]
[1734439242510,0.07257137,4002.5,4001.9,0.48345131]
[1734439242834,0.07257137,4002.5,4002.0,0.48345131]
[1734439242983,0.19415959,4002.4,4002.1,0.48345131]
[1734439243177,0.19415959,4002.4,4002.2,0.48354431]
[1734439243408,0.07192439,4002.3,4001.4,3.82114199]
[1734439243614,0.07192439,4002.3,4001.5,0.83484249]
[1734439243828,1.86902454,4002.6,4001.6,0.29759375]
[1734439244040,0.07190464,4002.2,4001.7,0.29759375]
[1734439244327,0.35377035,4002.5,4001.8,0.29759375]
[1734439244536,0.86479513,4002.4,4001.9,0.29759375]
[1734439244682,0.07194414,4002.4,4002.0,0.29759375]
[1734439244882,0.07194414,4002.4,4002.1,0.29759375]
[1734439245115,0.2294739,4002.3,4001.4,3.82116534]
[1734439245332,0.07194414,4002.4,4001.5,2.38573489]
[1734439245515,0.35377035,4002.5,4001.6,0.29771749]
[1734439245516,0.07190464,4002.2,4001.6,0.29771749]
[1734439245719,0.07192439,4002.3,4001.7,0.29771749]
[1734439245924,1.39919489,4002.5,4001.8,0.29771749]
[1734439246087,0.07190464,4002.2,4001.9,0.29771749]
[1734439246282,1.2439975,4002.4,4001.4,3.57317055]
[1734439246283,0.37914738,4002.4,4002.0,0.29771749]
[1734439246512,0.37914738,4002.4,4001.4,3.57317055]
[1734439246513,0.07188489,4002.1,4001.4,3.57317055]
[1734439246793,0.07186514,4002.0,4001.5,2.38674036]
[1734439246988,0.37914738,4002.4,4001.6,1.13337683]
[1734439247332,0.07192439,4002.3,4001.7,0.29783681]
[1734439247488,0.07192439,4002.3,4001.8,0.29783681]
[1734439247819,0.8236,4002.6,4001.9,0.29783681]
[1734439247820,0.07190464,4002.2,4001.9,0.29783681]
[1734439248021,0.8236,4002.6,4002.0,0.29783681]
[1734439248238,0.93680911,4002.5,4002.1,0.29783681]
[1734439248534,0.28058336,4002.4,4002.2,0.29783681]
[1734439248697,0.28058336,4002.4,4001.4,4.85547491]
[1734439249019,0.8236,4002.6,4001.5,2.63439853]
[1734439249220,1.86902454,4002.6,4001.6,2.38640374]
[1734439249420,0.86485368,4002.5,4001.7,0.29781646]
[1734439249624,0.86485368,4002.5,4001.8,0.29781646]
[1734439249829,1.04542454,4002.8,4002.4,2.33350961]
[1734439250130,2.61472638,4003.3,4002.4,2.33350961]
[1734439250131,1.04542454,4003.5,4002.7,0.55]
[1734439250299,2.09205402,4004.2,4003.4,2.33350961]
[1734439250300,0.8181,4004.1,4003.4,2.33350961]
[1734439250503,0.8181,4004.1,4003.5,1.13283611]
[1734439250704,0.8181,4004.1,4003.6,0.29781646]
[1734439250939,0.8181,4004.1,4003.7,0.29781646]
[1734439251250,0.23867789,4004.0,4003.5,0.29781646]
[1734439251390,0.8181,4004.1,4003.6,0.29781646]
[1734439251592,0.8181,4004.1,4003.7,0.29781646]
[1734439251833,0.8181,4004.1,4003.1,0.29781646]
[1734439251991,0.8181,4004.1,4003.0,5.33350961]
[1734439251992,0.8181,4004.1,4003.2,0.29781646]
[1734439252196,0.8181,4004.1,4003.3,0.29781646]
[1734439252400,0.8181,4004.1,4003.4,0.29781646]
[1734439252707,0.8181,4004.1,4003.1,0.29781646]
[1734439252911,0.8181,4004.1,4003.2,0.29781646]
[1734439253108,0.8181,4004.1,4003.3,0.29781646]
[1734439253312,0.8181,4004.1,4003.0,5.33350961]
[1734439253313,0.8181,4004.1,4003.1,0.29781646]
[1734439253505,0.8181,4004.1,4003.2,0.29781646]
[1734439253720,0.8181,4004.1,4003.3,0.29781646]
[1734439253950,0.8181,4004.1,4003.1,0.29781646]
[1734439254113,0.8181,4004.1,4003.2,0.29781646]
[1734439254318,0.8181,4004.1,4003.5,0.7873]
[1734439254540,0.8181,4004.1,4003.6,0.29781646]
[1734439254997,0.8181,4004.5,4003.6,0.29781646]
[1734439255199,0.06645582,4004.4,4003.8,2.33350961]
[1734439255567,0.8181,4004.5,4003.9,0.18521955]
[1734439255707,0.8181,4004.5,4004.0,0.18521955]
[1734439255907,0.06648535,4004.4,4004.1,0.18521955]
[1734439256214,0.06648535,4004.4,4003.8,2.33350961]
[1734439256541,4.56867893,4005.4,4003.9,0.48134897]
[1734439256542,0.8181,4005.0,4003.9,0.48134897]
[1734439256753,0.8181,4005.0,4004.0,0.18515388]
[1734439256898,0.06658397,4004.9,4004.1,0.18515388]
[1734439257104,0.06658397,4004.9,4004.2,0.18515388]
[1734439257414,0.8181,4005.0,4004.3,0.18515388]
[1734439257612,0.06675627,4004.9,4003.9,0.29619509]
[1734439257844,0.8181,4005.0,4004.0,0.18499062]
[1734439258133,0.8181,4005.0,4003.9,0.29619509]
[1734439258134,0.8181,4005.0,4004.1,0.18499062]
[1734439258341,0.8181,4004.8,4003.6,0.29592152]
[1734439258497,0.8181,4004.8,4003.7,0.18495099]
[1734439258700,0.06702694,4004.7,4003.8,0.18495099]
[1734439258900,0.06702694,4004.7,4003.6,0.29592152]
[1734439258901,0.06702694,4004.7,4003.9,0.18495099]
[1734439259135,0.8181,4004.8,4003.6,0.29598739]
[1734439259300,0.8181,4004.8,4003.7,0.18493069]
[1734439259496,0.8181,4004.8,4003.8,0.18493069]
[1734439259776,0.8181,4004.8,4003.5,3.0]
[1734439259920,0.1,4005.3,4003.6,0.18493337]
[1734439259921,0.8181,4004.6,4003.6,0.18493337]